[Event "Early-Titled-Tuesday-Blitz-February-20-2024"]
[Site "Chess.com"]
[Date "2024.02.20"]
[Round "6"]
[White "Carlitus2004"]
[Black "RedFirePanda"]
[Result "1-0"]
[WhiteElo "2384"]
[BlackElo "2549"]
[TimeControl "180+1"]
[EndTime "9:10:12 PST"]
[Termination "Carlitus2004 won by resignation"]

1. e4 {[%clk 0:02:59.2]} 1... d5 {[%clk 0:03:00]} 2. Nc3 {[%clk 0:02:57.8]} 2...
dxe4 {[%clk 0:02:59.4]} 3. Nxe4 {[%clk 0:02:57.9]} 3... Nf6 {[%clk 0:02:55.6]}
4. Nxf6+ {[%clk 0:02:55.2]} 4... exf6 {[%clk 0:02:56.5]} 5. Bc4 {[%clk
0:02:54.7]} 5... Bd6 {[%clk 0:02:54.3]} 6. Qe2+ {[%clk 0:02:54.9]} 6... Be7
{[%clk 0:02:53.3]} 7. Nf3 {[%clk 0:02:53]} 7... O-O {[%clk 0:02:53]} 8. O-O
{[%clk 0:02:53.7]} 8... Re8 {[%clk 0:02:52.5]} 9. Re1 {[%clk 0:02:51.8]} 9... c6
{[%clk 0:02:46.2]} 10. d4 {[%clk 0:02:49.5]} 10... Bg4 {[%clk 0:02:38.7]} 11. c3
{[%clk 0:02:49.5]} 11... Nd7 {[%clk 0:02:37.5]} 12. h3 {[%clk 0:02:48.5]} 12...
Bh5 {[%clk 0:02:37.1]} 13. Bf4 {[%clk 0:02:34.9]} 13... Nb6 {[%clk 0:02:28.7]}
14. Bd3 {[%clk 0:02:30.9]} 14... Qd7 {[%clk 0:02:23]} 15. Qd1 {[%clk 0:02:24.5]}
15... Nd5 {[%clk 0:02:18.7]} 16. Bh2 {[%clk 0:02:22.5]} 16... Bd6 {[%clk
0:02:16.5]} 17. Be2 {[%clk 0:02:15.9]} 17... Bxh2+ {[%clk 0:01:56.9]} 18. Nxh2
{[%clk 0:02:16.8]} 18... Bg6 {[%clk 0:01:54.1]} 19. Bg4 {[%clk 0:02:09.7]} 19...
Qd6 {[%clk 0:01:50.6]} 20. Qd2 {[%clk 0:02:08]} 20... Qf4 {[%clk 0:01:47.1]} 21.
Qxf4 {[%clk 0:01:22.8]} 21... Nxf4 {[%clk 0:01:48]} 22. b3 {[%clk 0:01:18.2]}
22... Nd3 {[%clk 0:01:35.4]} 23. Rxe8+ {[%clk 0:01:09.7]} 23... Rxe8 {[%clk
0:01:36.3]} 24. Nf1 {[%clk 0:01:00.8]} 24... f5 {[%clk 0:01:21.7]} 25. Bf3
{[%clk 0:01:00.3]} 25... f4 {[%clk 0:01:18.6]} 26. Nd2 {[%clk 0:00:53.2]} 26...
Ne1 {[%clk 0:00:44.2]} 27. Kf1 {[%clk 0:00:19.8]} 27... Bd3+ {[%clk 0:00:35.5]}
28. Kg1 {[%clk 0:00:20.1]} 28... Nxf3+ {[%clk 0:00:31.4]} 29. Nxf3 {[%clk
0:00:21]} 29... Re2 {[%clk 0:00:29.3]} 30. Re1 {[%clk 0:00:20.8]} 30... Rxe1+
{[%clk 0:00:27]} 31. Nxe1 {[%clk 0:00:21.7]} 31... Be4 {[%clk 0:00:26.6]} 32.
Kf1 {[%clk 0:00:16.9]} 32... Kf8 {[%clk 0:00:25.7]} 33. Ke2 {[%clk 0:00:17.2]}
33... Ke7 {[%clk 0:00:26.1]} 34. f3 {[%clk 0:00:11.3]} 34... Bf5 {[%clk
0:00:21.4]} 35. Nd3 {[%clk 0:00:10.1]} 35... Bxd3+ {[%clk 0:00:20.7]} 36. Kxd3
{[%clk 0:00:10.3]} 36... Ke6 {[%clk 0:00:19.1]} 37. Ke4 {[%clk 0:00:10.4]} 37...
g5 {[%clk 0:00:19]} 38. c4 {[%clk 0:00:10.1]} 38... f5+ {[%clk 0:00:17.5]} 39.
Kd3 {[%clk 0:00:10.8]} 39... h5 {[%clk 0:00:15]} 40. Kc3 {[%clk 0:00:11.3]}
40... Kd6 {[%clk 0:00:10.2]} 41. b4 {[%clk 0:00:11]} 41... Ke6 {[%clk
0:00:06.7]} 42. Kd3 {[%clk 0:00:11]} 42... Kd6 {[%clk 0:00:06.7]} 43. a3 {[%clk
0:00:11.8]} 43... Ke6 {[%clk 0:00:06.4]} 44. Kc3 {[%clk 0:00:12.5]} 44... Kd6
{[%clk 0:00:06.9]} 45. Kb3 {[%clk 0:00:13.1]} 45... Ke6 {[%clk 0:00:07.3]} 46.
a4 {[%clk 0:00:13.4]} 46... Kd6 {[%clk 0:00:07.7]} 47. b5 {[%clk 0:00:13.3]}
47... Ke6 {[%clk 0:00:04.1]} 48. Kb4 {[%clk 0:00:13.2]} 48... cxb5 {[%clk
0:00:03.7]} 49. Kxb5 {[%clk 0:00:09.6]} 49... Kd6 {[%clk 0:00:03.5]} 50. a5
{[%clk 0:00:09.5]} 50... Kc7 {[%clk 0:00:02.1]} 51. a6 {[%clk 0:00:09.3]} 51...
b6 {[%clk 0:00:02.5]} 52. c5 {[%clk 0:00:08.2]} 52... bxc5 {[%clk 0:00:02.3]}
53. Kxc5 {[%clk 0:00:09.1]} 53... Kd7 {[%clk 0:00:02.5]} 54. d5 {[%clk
0:00:08.6]} 54... g4 {[%clk 0:00:02.1]} 55. d6 {[%clk 0:00:04.8]} 55... gxh3
{[%clk 0:00:01.5]} 56. gxh3 {[%clk 0:00:05.7]} 56... h4 {[%clk 0:00:02.1]} 57.
Kd5 {[%clk 0:00:06]} 57... Kd8 {[%clk 0:00:02.7]} 58. Ke6 {[%clk 0:00:06]} 58...
Ke8 {[%clk 0:00:03.2]} 59. Kxf5 {[%clk 0:00:06.5]} 59... Kd7 {[%clk 0:00:03.4]}
60. Ke5 {[%clk 0:00:07.2]} 60... Kd8 {[%clk 0:00:02.7]} 61. Kxf4 {[%clk
0:00:07.6]} 61... Kd7 {[%clk 0:00:03.1]} 62. Ke5 {[%clk 0:00:08.4]} 62... Kd8
{[%clk 0:00:03.7]} 63. Kd5 {[%clk 0:00:08.8]} 63... Kd7 {[%clk 0:00:04.2]} 64.
f4 {[%clk 0:00:09.5]} 64... Kd8 {[%clk 0:00:04.5]} 65. Ke6 {[%clk 0:00:10.1]}
65... Ke8 {[%clk 0:00:04.7]} 66. f5 {[%clk 0:00:10.9]} 66... Kd8 {[%clk
0:00:05.3]} 67. f6 {[%clk 0:00:11.6]} 67... Ke8 {[%clk 0:00:06]} 68. f7+ {[%clk
0:00:11.8]} 68... Kf8 {[%clk 0:00:06.6]} 69. d7 {[%clk 0:00:12.2]} 1-0

[Event "Early-Titled-Tuesday-Blitz-February-20-2024"]
[Site "Chess.com"]
[Date "2024.02.20"]
[Round "6"]
[White "ChessBliss09"]
[Black "ProChessWICTH"]
[Result "0-1"]
[WhiteElo "2159"]
[BlackElo "2475"]
[TimeControl "180+1"]
[EndTime "9:10:15 PST"]
[Termination "ProChessWICTH won by checkmate"]

1. c4 {[%clk 0:03:00.9]} 1... Nf6 {[%clk 0:02:58.6]} 2. Nc3 {[%clk 0:03:00.8]}
2... c5 {[%clk 0:02:58.1]} 3. Nf3 {[%clk 0:03:00.1]} 3... g6 {[%clk 0:02:58.3]}
4. g3 {[%clk 0:02:59.4]} 4... Bg7 {[%clk 0:02:58.8]} 5. Bg2 {[%clk 0:02:59.8]}
5... O-O {[%clk 0:02:59.6]} 6. O-O {[%clk 0:03:00.1]} 6... Nc6 {[%clk
0:03:00.3]} 7. d4 {[%clk 0:03:00.4]} 7... cxd4 {[%clk 0:03:01.2]} 8. Nxd4 {[%clk
0:03:00.7]} 8... a6 {[%clk 0:03:01.1]} 9. e4 {[%clk 0:02:55.9]} 9... d6 {[%clk
0:02:56.6]} 10. Be3 {[%clk 0:02:53.9]} 10... Bd7 {[%clk 0:02:54.7]} 11. Rc1
{[%clk 0:02:52.8]} 11... Rc8 {[%clk 0:02:53.7]} 12. b3 {[%clk 0:02:53.1]} 12...
Nxd4 {[%clk 0:02:50.2]} 13. Bxd4 {[%clk 0:02:52.8]} 13... b5 {[%clk 0:02:50.8]}
14. cxb5 {[%clk 0:02:50.3]} 14... axb5 {[%clk 0:02:51.7]} 15. Qd3 {[%clk
0:02:43.2]} 15... Qa5 {[%clk 0:02:49.5]} 16. Bxf6 {[%clk 0:02:22.2]} 16... Bxf6
{[%clk 0:02:48.9]} 17. Nd5 {[%clk 0:02:22.9]} 17... Rxc1 {[%clk 0:02:31.5]} 18.
Rxc1 {[%clk 0:02:23.8]} 18... Qxa2 {[%clk 0:02:29.8]} 19. Nxf6+ {[%clk
0:02:21.9]} 19... exf6 {[%clk 0:02:30.7]} 20. Qxd6 {[%clk 0:02:21.3]} 20... Be6
{[%clk 0:02:26.4]} 21. b4 {[%clk 0:02:10.1]} 21... Qb2 {[%clk 0:02:16.3]} 22.
Rd1 {[%clk 0:02:03.5]} 22... Bc4 {[%clk 0:01:58.4]} 23. h4 {[%clk 0:01:56.8]}
23... Re8 {[%clk 0:01:20.7]} 24. h5 {[%clk 0:01:33.5]} 24... Be2 {[%clk
0:01:06.4]} 25. Rd5 {[%clk 0:01:13.2]} 25... Qc1+ {[%clk 0:00:37.2]} 26. Kh2
{[%clk 0:01:12.4]} 26... Bxh5 {[%clk 0:00:23.3]} 27. Qxf6 {[%clk 0:01:08.2]}
27... Be2 {[%clk 0:00:17.9]} 28. Qh4 {[%clk 0:00:31.1]} 28... Kg7 {[%clk
0:00:14.8]} 29. e5 {[%clk 0:00:24.1]} 29... Bc4 {[%clk 0:00:11.6]} 30. Rc5
{[%clk 0:00:16.3]} 30... Qe1 {[%clk 0:00:11.6]} 31. Qf6+ {[%clk 0:00:13.1]}
31... Kg8 {[%clk 0:00:11.3]} 32. Bd5 {[%clk 0:00:09.4]} 32... Bxd5 {[%clk
0:00:06.7]} 33. Rxd5 {[%clk 0:00:09.4]} 33... Qxb4 {[%clk 0:00:06.6]} 34. Rd7
{[%clk 0:00:08.4]} 34... Qc4 {[%clk 0:00:06.4]} 35. Rb7 {[%clk 0:00:06.5]} 35...
b4 {[%clk 0:00:05.8]} 36. Qb6 {[%clk 0:00:03.1]} 36... Rxe5 {[%clk 0:00:02.2]}
37. Qxb4 {[%clk 0:00:03.1]} 37... Qf1 {[%clk 0:00:01.7]} 38. Rb8+ {[%clk
0:00:01.9]} 38... Kg7 {[%clk 0:00:02.4]} 39. Qd4 {[%clk 0:00:02.1]} 39... Qe2
{[%clk 0:00:01.7]} 40. Rb5 {[%clk 0:00:01.9]} 40... Qh5+ {[%clk 0:00:01.8]} 41.
Kg2 {[%clk 0:00:01.2]} 41... f6 {[%clk 0:00:01.9]} 42. Rxe5 {[%clk 0:00:02]}
42... Qxe5 {[%clk 0:00:02.2]} 43. Qd7+ {[%clk 0:00:02.9]} 43... Kh6 {[%clk
0:00:02.1]} 44. Qh3+ {[%clk 0:00:03.8]} 44... Qh5 {[%clk 0:00:02.3]} 45. Qd7
{[%clk 0:00:04.3]} 45... Qg5 {[%clk 0:00:02.5]} 46. Qd3 {[%clk 0:00:04.4]} 46...
f5 {[%clk 0:00:02.5]} 47. Qd7 {[%clk 0:00:04.2]} 47... Qf6 {[%clk 0:00:02.5]}
48. Qc7 {[%clk 0:00:04.6]} 48... g5 {[%clk 0:00:03.1]} 49. Qc5 {[%clk
0:00:04.3]} 49... Kg6 {[%clk 0:00:03.6]} 50. Qc3 {[%clk 0:00:03.9]} 50... Qe6
{[%clk 0:00:03.7]} 51. Qd3 {[%clk 0:00:03.7]} 51... Qe4+ {[%clk 0:00:03.7]} 52.
Qxe4 {[%clk 0:00:03.3]} 52... fxe4 {[%clk 0:00:04.6]} 53. Kf1 {[%clk 0:00:03.5]}
53... Kf5 {[%clk 0:00:05.1]} 54. Ke2 {[%clk 0:00:04.4]} 54... h5 {[%clk
0:00:04]} 55. Ke3 {[%clk 0:00:04.7]} 55... Ke5 {[%clk 0:00:04.3]} 56. Ke2 {[%clk
0:00:04.3]} 56... Kd4 {[%clk 0:00:04.3]} 57. f3 {[%clk 0:00:04.9]} 57... exf3+
{[%clk 0:00:04.4]} 58. Kxf3 {[%clk 0:00:05]} 58... Kd3 {[%clk 0:00:05]} 59. Kg2
{[%clk 0:00:03.4]} 59... Ke3 {[%clk 0:00:05.1]} 60. Kh3 {[%clk 0:00:04.1]} 60...
Kf3 {[%clk 0:00:05.3]} 61. Kh2 {[%clk 0:00:04]} 61... g4 {[%clk 0:00:05.7]} 62.
Kg1 {[%clk 0:00:03.1]} 62... Kxg3 {[%clk 0:00:06.6]} 63. Kh1 {[%clk 0:00:03.8]}
63... Kh3 {[%clk 0:00:07.5]} 64. Kg1 {[%clk 0:00:04.6]} 64... g3 {[%clk
0:00:07.5]} 65. Kh1 {[%clk 0:00:05.5]} 65... h4 {[%clk 0:00:08.1]} 66. Kg1
{[%clk 0:00:06]} 66... g2 {[%clk 0:00:08.8]} 67. Kf2 {[%clk 0:00:05.8]} 67...
Kh2 {[%clk 0:00:09.7]} 68. Kf3 {[%clk 0:00:06.6]} 68... g1=Q {[%clk 0:00:10.4]}
69. Kf4 {[%clk 0:00:07.5]} 69... Qg3+ {[%clk 0:00:10.9]} 70. Kf5 {[%clk
0:00:08.4]} 70... Kg2 {[%clk 0:00:11.6]} 71. Ke6 {[%clk 0:00:09]} 71... h3
{[%clk 0:00:12.5]} 72. Kf6 {[%clk 0:00:09.7]} 72... h2 {[%clk 0:00:13.4]} 73.
Kf5 {[%clk 0:00:10.6]} 73... h1=Q {[%clk 0:00:14]} 74. Kf6 {[%clk 0:00:11.5]}
74... Qf1+ {[%clk 0:00:14.7]} 75. Ke6 {[%clk 0:00:10.9]} 75... Qe3+ {[%clk
0:00:15.5]} 76. Kd6 {[%clk 0:00:11.6]} 76... Qd1+ {[%clk 0:00:16]} 77. Kc6
{[%clk 0:00:12.5]} 77... Qc3+ {[%clk 0:00:16.4]} 78. Kb6 {[%clk 0:00:13.4]}
78... Qb1+ {[%clk 0:00:16.8]} 79. Ka6 {[%clk 0:00:14.3]} 79... Qca1# {[%clk
0:00:17.3]} 0-1

[Event "Early-Titled-Tuesday-Blitz-February-20-2024"]
[Site "Chess.com"]
[Date "2024.02.20"]
[Round "6"]
[White "manipun1"]
[Black "lrestevez"]
[Result "1/2-1/2"]
[WhiteElo "2395"]
[BlackElo "2190"]
[TimeControl "180+1"]
[EndTime "9:10:18 PST"]
[Termination "Game drawn - insufficient material"]

1. e4 {[%clk 0:03:00.9]} 1... e5 {[%clk 0:02:55.8]} 2. Nf3 {[%clk 0:03:00.2]}
2... Nc6 {[%clk 0:02:55.5]} 3. Bb5 {[%clk 0:03:00]} 3... a6 {[%clk 0:02:54.8]}
4. Ba4 {[%clk 0:02:59.9]} 4... Nf6 {[%clk 0:02:55.1]} 5. Bxc6 {[%clk 0:03:00.1]}
5... dxc6 {[%clk 0:02:54.5]} 6. d3 {[%clk 0:03:01]} 6... Bc5 {[%clk 0:02:53.7]}
7. Nbd2 {[%clk 0:02:58.2]} 7... Qe7 {[%clk 0:02:53.5]} 8. b3 {[%clk 0:02:51.6]}
8... Bg4 {[%clk 0:02:36.2]} 9. Bb2 {[%clk 0:02:50]} 9... Nd7 {[%clk 0:02:35.4]}
10. h3 {[%clk 0:02:27]} 10... Bh5 {[%clk 0:02:33.2]} 11. Nf1 {[%clk 0:02:19]}
11... f6 {[%clk 0:02:33.1]} 12. Ng3 {[%clk 0:02:17.9]} 12... Bg6 {[%clk
0:02:32.7]} 13. Nh4 {[%clk 0:02:15.3]} 13... Bf7 {[%clk 0:02:31.9]} 14. Nhf5
{[%clk 0:02:12.5]} 14... Qf8 {[%clk 0:02:31.9]} 15. O-O {[%clk 0:02:04.8]} 15...
O-O-O {[%clk 0:02:30.5]} 16. Qg4 {[%clk 0:01:50.2]} 16... g6 {[%clk 0:02:27.2]}
17. Ne3 {[%clk 0:01:49.3]} 17... h5 {[%clk 0:02:24.6]} 18. Qf3 {[%clk
0:01:41.9]} 18... h4 {[%clk 0:02:22.9]} 19. Ne2 {[%clk 0:01:40.9]} 19... Be6
{[%clk 0:02:11.9]} 20. d4 {[%clk 0:01:40.6]} 20... exd4 {[%clk 0:02:09.4]} 21.
Nxd4 {[%clk 0:01:41.5]} 21... Bg8 {[%clk 0:01:54.6]} 22. Rad1 {[%clk 0:01:28]}
22... Ne5 {[%clk 0:01:54.8]} 23. Qe2 {[%clk 0:01:27.6]} 23... Qe7 {[%clk
0:01:32.1]} 24. Nf3 {[%clk 0:01:21.1]} 24... Bf7 {[%clk 0:01:21.8]} 25. Nxe5
{[%clk 0:01:16.7]} 25... fxe5 {[%clk 0:01:22.7]} 26. Ng4 {[%clk 0:01:14.3]}
26... Bd6 {[%clk 0:01:16.4]} 27. f4 {[%clk 0:01:05.5]} 27... exf4 {[%clk
0:01:15.2]} 28. Bxh8 {[%clk 0:01:06.4]} 28... Rxh8 {[%clk 0:01:13.4]} 29. e5
{[%clk 0:00:56.9]} 29... Bc5+ {[%clk 0:01:13.1]} 30. Kh1 {[%clk 0:00:57.5]}
30... g5 {[%clk 0:01:13]} 31. c4 {[%clk 0:00:42.2]} 31... Be6 {[%clk 0:01:13]}
32. Qf3 {[%clk 0:00:21]} 32... Kb8 {[%clk 0:01:11.7]} 33. Nf6 {[%clk 0:00:19.8]}
33... Be3 {[%clk 0:01:06.5]} 34. Ng4 {[%clk 0:00:19.1]} 34... Bc5 {[%clk
0:01:05.6]} 35. Nf6 {[%clk 0:00:19.1]} 35... Be3 {[%clk 0:00:58.9]} 36. Rd3
{[%clk 0:00:18.5]} 36... Bf5 {[%clk 0:00:53.4]} 37. Rxe3 {[%clk 0:00:14.9]}
37... fxe3 {[%clk 0:00:54.3]} 38. Qxe3 {[%clk 0:00:15.5]} 38... Qe6 {[%clk
0:00:46.8]} 39. Qxg5 {[%clk 0:00:13.4]} 39... Bd3 {[%clk 0:00:46.8]} 40. Rd1
{[%clk 0:00:12.3]} 40... Qf5 {[%clk 0:00:39.1]} 41. Qxf5 {[%clk 0:00:09.6]}
41... Bxf5 {[%clk 0:00:40]} 42. Re1 {[%clk 0:00:08.7]} 42... Be6 {[%clk
0:00:40.2]} 43. Kg1 {[%clk 0:00:08.3]} 43... Kc8 {[%clk 0:00:40.4]} 44. Ne4
{[%clk 0:00:08.3]} 44... b6 {[%clk 0:00:35.6]} 45. Ng5 {[%clk 0:00:08.1]} 45...
Kd7 {[%clk 0:00:35.6]} 46. Nf3 {[%clk 0:00:07]} 46... Ke7 {[%clk 0:00:34.2]} 47.
Re4 {[%clk 0:00:07]} 47... c5 {[%clk 0:00:33.2]} 48. Rxh4 {[%clk 0:00:06.8]}
48... Rxh4 {[%clk 0:00:20.6]} 49. Nxh4 {[%clk 0:00:07.7]} 49... b5 {[%clk
0:00:21.3]} 50. cxb5 {[%clk 0:00:07.1]} 50... axb5 {[%clk 0:00:20.4]} 51. Kf2
{[%clk 0:00:07.7]} 51... c4 {[%clk 0:00:20]} 52. bxc4 {[%clk 0:00:08.6]} 52...
Bxc4 {[%clk 0:00:19.3]} 53. a3 {[%clk 0:00:08.3]} 53... c5 {[%clk 0:00:19.7]}
54. Ke3 {[%clk 0:00:08.2]} 54... b4 {[%clk 0:00:20.3]} 55. axb4 {[%clk 0:00:08]}
55... cxb4 {[%clk 0:00:21]} 56. Nf3 {[%clk 0:00:07.8]} 56... b3 {[%clk
0:00:21.4]} 57. Nd2 {[%clk 0:00:08.1]} 57... Bd5 {[%clk 0:00:21.1]} 58. Kd4
{[%clk 0:00:07.2]} 58... Bxg2 {[%clk 0:00:19.5]} 59. h4 {[%clk 0:00:07]} 59...
b2 {[%clk 0:00:18.1]} 60. Kc3 {[%clk 0:00:06.7]} 60... Ke6 {[%clk 0:00:17.6]}
61. Kxb2 {[%clk 0:00:06.8]} 61... Kxe5 {[%clk 0:00:18.2]} 62. h5 {[%clk
0:00:06.6]} 62... Kf6 {[%clk 0:00:18.3]} 63. Ne4+ {[%clk 0:00:05]} 63... Bxe4
{[%clk 0:00:17.4]} 64. h6 {[%clk 0:00:05.3]} 64... Bh7 {[%clk 0:00:17]} 65. Kc3
{[%clk 0:00:04.6]} 65... Ke5 {[%clk 0:00:17.9]} 66. Kb2 {[%clk 0:00:05.5]} 66...
Kd4 {[%clk 0:00:18]} 67. Kc1 {[%clk 0:00:05.3]} 67... Kd3 {[%clk 0:00:16.1]} 68.
Kd1 {[%clk 0:00:06.2]} 68... Ke3 {[%clk 0:00:16.3]} 69. Ke1 {[%clk 0:00:07.1]}
69... Kf4 {[%clk 0:00:16.2]} 70. Kf1 {[%clk 0:00:08]} 70... Kg5 {[%clk 0:00:17]}
71. Kg1 {[%clk 0:00:08.9]} 71... Kxh6 {[%clk 0:00:17.7]} 1/2-1/2

[Event "Early-Titled-Tuesday-Blitz-February-20-2024"]
[Site "Chess.com"]
[Date "2024.02.20"]
[Round "6"]
[White "Abund"]
[Black "Sam_ChessMood"]
[Result "1/2-1/2"]
[WhiteElo "2784"]
[BlackElo "2935"]
[TimeControl "180+1"]
[EndTime "9:10:23 PST"]
[Termination "Game drawn by repetition"]

1. e4 {[%clk 0:02:57.6]} 1... c5 {[%clk 0:03:00.1]} 2. Nf3 {[%clk 0:02:57.2]}
2... e6 {[%clk 0:03:00.6]} 3. c3 {[%clk 0:02:57.4]} 3... d5 {[%clk 0:02:59.7]}
4. exd5 {[%clk 0:02:57.8]} 4... exd5 {[%clk 0:02:59.9]} 5. d4 {[%clk 0:02:58.1]}
5... Nc6 {[%clk 0:03:00.3]} 6. Bb5 {[%clk 0:02:58.1]} 6... Bd6 {[%clk
0:03:00.5]} 7. dxc5 {[%clk 0:02:57.3]} 7... Bxc5 {[%clk 0:03:00.6]} 8. O-O
{[%clk 0:02:57.7]} 8... Ne7 {[%clk 0:02:55.4]} 9. Nbd2 {[%clk 0:02:56.7]} 9...
O-O {[%clk 0:02:55.3]} 10. Nb3 {[%clk 0:02:56.4]} 10... Bb6 {[%clk 0:02:55.7]}
11. Bd3 {[%clk 0:02:54]} 11... h6 {[%clk 0:02:46.7]} 12. h3 {[%clk 0:02:44.5]}
12... Qd6 {[%clk 0:02:46.5]} 13. Nbd4 {[%clk 0:02:41.1]} 13... Nxd4 {[%clk
0:02:38.7]} 14. cxd4 {[%clk 0:02:34.5]} 14... Bf5 {[%clk 0:02:38]} 15. Re1
{[%clk 0:02:29.5]} 15... Bxd3 {[%clk 0:02:33.7]} 16. Qxd3 {[%clk 0:02:29.2]}
16... Nc6 {[%clk 0:02:33.8]} 17. Bd2 {[%clk 0:02:24.6]} 17... Rfe8 {[%clk
0:02:33]} 18. a3 {[%clk 0:02:21.1]} 18... Rac8 {[%clk 0:02:20.2]} 19. Rac1
{[%clk 0:02:17]} 19... Qf6 {[%clk 0:02:11.7]} 20. Bc3 {[%clk 0:02:15.1]} 20...
g5 {[%clk 0:01:59.7]} 21. Re3 {[%clk 0:01:52.7]} 21... Re6 {[%clk 0:01:44.2]}
22. Rce1 {[%clk 0:01:51]} 22... Rce8 {[%clk 0:01:44.3]} 23. Ne5 {[%clk
0:01:30.5]} 23... Nxe5 {[%clk 0:01:37.7]} 24. dxe5 {[%clk 0:01:27.5]} 24... Qg6
{[%clk 0:01:33.2]} 25. Qxg6+ {[%clk 0:01:13.8]} 25... fxg6 {[%clk 0:01:30.4]}
26. Rd3 {[%clk 0:01:09.1]} 26... Rd8 {[%clk 0:00:57.3]} 27. Red1 {[%clk
0:01:08.9]} 27... Rf8 {[%clk 0:00:56.2]} 28. R1d2 {[%clk 0:01:07.1]} 28... d4
{[%clk 0:00:52.3]} 29. Bxd4 {[%clk 0:00:59.5]} 29... Bxd4 {[%clk 0:00:52.2]} 30.
Rxd4 {[%clk 0:01:00.4]} 30... Rxe5 {[%clk 0:00:52.9]} 31. Rd7 {[%clk 0:00:40.3]}
31... Re1+ {[%clk 0:00:52.9]} 32. Kh2 {[%clk 0:00:40.4]} 32... Rf7 {[%clk
0:00:53.4]} 33. Kg3 {[%clk 0:00:37.8]} 33... Ree7 {[%clk 0:00:45]} 34. Rxe7
{[%clk 0:00:29.2]} 34... Rxe7 {[%clk 0:00:45.9]} 35. Kf3 {[%clk 0:00:26.4]}
35... Kf7 {[%clk 0:00:45.9]} 36. Rd6 {[%clk 0:00:26.1]} 36... h5 {[%clk
0:00:39.6]} 37. g3 {[%clk 0:00:22.3]} 37... b6 {[%clk 0:00:38.1]} 38. a4 {[%clk
0:00:18.6]} 38... Rc7 {[%clk 0:00:36.2]} 39. Ke3 {[%clk 0:00:14.3]} 39... Rc2
{[%clk 0:00:27.8]} 40. b3 {[%clk 0:00:12.8]} 40... Rc3+ {[%clk 0:00:27.2]} 41.
Rd3 {[%clk 0:00:12.8]} 41... Rc7 {[%clk 0:00:27]} 42. Ke4 {[%clk 0:00:11.4]}
42... Ke6 {[%clk 0:00:27.1]} 43. Ke3 {[%clk 0:00:03]} 43... Ke5 {[%clk
0:00:24.9]} 44. Kd2 {[%clk 0:00:03.6]} 44... h4 {[%clk 0:00:21.3]} 45. Re3+
{[%clk 0:00:03.4]} 45... Kf6 {[%clk 0:00:18.8]} 46. Rd3 {[%clk 0:00:03.2]} 46...
Re7 {[%clk 0:00:15.3]} 47. Rf3+ {[%clk 0:00:02.7]} 47... Kg7 {[%clk 0:00:15.5]}
48. Re3 {[%clk 0:00:03.3]} 48... Rf7 {[%clk 0:00:15.1]} 49. Ke2 {[%clk
0:00:03.8]} 49... Rc7 {[%clk 0:00:14.2]} 50. Rd3 {[%clk 0:00:03.6]} 50... Kf6
{[%clk 0:00:13]} 51. Kf3 {[%clk 0:00:04.2]} 51... hxg3 {[%clk 0:00:11]} 52. fxg3
{[%clk 0:00:04.5]} 52... Kf5 {[%clk 0:00:08.5]} 53. Rd5+ {[%clk 0:00:04.6]}
53... Kf6 {[%clk 0:00:08.7]} 54. Kg4 {[%clk 0:00:04.3]} 54... Rc3 {[%clk
0:00:08.6]} 55. Rd6+ {[%clk 0:00:04.2]} 55... Kg7 {[%clk 0:00:07.4]} 56. Rd7+
{[%clk 0:00:04.2]} 56... Kh6 {[%clk 0:00:07.4]} 57. Rxa7 {[%clk 0:00:04.4]}
57... Rxb3 {[%clk 0:00:07.6]} 58. Ra6 {[%clk 0:00:04.2]} 58... Rb4+ {[%clk
0:00:07.6]} 59. Kf3 {[%clk 0:00:04.6]} 59... Kg7 {[%clk 0:00:05.7]} 60. a5
{[%clk 0:00:04.5]} 60... bxa5 {[%clk 0:00:05.5]} 61. Rxa5 {[%clk 0:00:05.4]}
61... Kh6 {[%clk 0:00:05.8]} 62. Ra7 {[%clk 0:00:05.5]} 62... Rb3+ {[%clk
0:00:05.5]} 63. Kg4 {[%clk 0:00:05.1]} 63... Rb4+ {[%clk 0:00:05.7]} 64. Kf3
{[%clk 0:00:05.5]} 64... Rb3+ {[%clk 0:00:06.2]} 65. Kg2 {[%clk 0:00:06]} 65...
Rb2+ {[%clk 0:00:06.3]} 66. Kf1 {[%clk 0:00:06.6]} 66... Rb3 {[%clk 0:00:05.9]}
67. Kg2 {[%clk 0:00:06.9]} 67... Rb2+ {[%clk 0:00:06.2]} 68. Kf3 {[%clk
0:00:07.5]} 68... Rb3+ {[%clk 0:00:06.7]} 1/2-1/2